[Event "White Rook U14 Final 2019"]
[Site "Sochi"]
[Date "2019.06.06"]
[Round "5.20"]
[White "Zeliantsova, Kseniya"]
[Black "Hrbkova, Johana"]
[Result "1-0"]
[ECO "C22"]
[WhiteElo "1892"]
[BlackElo "1085"]
[Annotator "NA RC"]
[PlyCount "73"]
[EventDate "2019.06.02"]
[EventCountry "RUS"]
[SourceTitle "playchess.com"]
[Source "ChessBase"]
[SourceQuality "1"]
[TimeControl "5400+30"]

{[%evp 24,72,656,755,806,843,1480,1223,1621,1758,1556,884,829,837,804,831,810,848,904,933,954,966,989,957,1000,1072,1084,1142,1172,1135,5489,32767,32767,32767,32767,32767,32767,32767,32767,32767,32767,32767,32767,32767,29986,32767,29992,32767,29995,29996,29999]} 1. e4 {[%emt 0:00:00]} e5 {[%emt 0:00:00]} 2. d4 {[%emt 0:00:00]} exd4 {[%emt 0:00:00]} 3. Qxd4 {[%emt 0:00:00]} Nc6 {[%emt 0:00:01]} 4. Qe3 {[%emt 0:00:00]} Nf6 {[%emt 0:06:25]} 5. Nc3 {[%emt 0:00:00]} Be7 {[%emt 0:01:03]} 6. Bd2 {[%emt 0:00:15]} d5 {[%emt 0:04:04]} 7. exd5 {[%emt 0:00:38]} Nxd5 {[%emt 0:00:57]} 8. Qg3 {[%emt 0:05:19] C22: Centre Game} Bf6 {[%emt 0:03:54]} (8... Ncb4 9. Bb5+ Bd7 10. Nxd5 Nxd5 11. Bc4 Be6 12. O-O-O Qd6 13. Qxd6 Bxd6 14. Nf3 Nf4 15. Bxe6 Nxe6 {½-½ (25) Amonatov,F (2624)-Kazhgaleyev,M (2576) Dushanbe 2013}) 9. O-O-O {[%emt 0:05:38]} Be6 {[%emt 0:05:35]} 10. Bc4 {[%emt 0:03:01]} Be5 $146 {[%emt 0:08:20]} ({Predecessor:} 10... Ne5 11. Bxd5 Bxd5 12. Bf4 Bh4 13. Qxg7 Ng6 14. Nxd5 Nxf4 15. Qxh8+ {1-0 (15) Sanchez,S-Rua,N San Felipe 1998}) 11. f4 {[%emt 0:01:12]} Bd4 {[%emt 0:02:26]} 12. Nge2 {[%emt 0:02:53]} Nxc3 $4 {[%emt 0:02:06]} (12... Nde7 $16) 13. Bxc3 {[%emt 0:00:10]} Bxc4 {[%emt 0:05:01]} 14. Nxd4 {[%emt 0:00:05]} Bd5 {[%emt 0:04:57]} 15. Qxg7 {[%emt 0:02:04]} Rf8 {[%emt 0:02:55]} 16. Nxc6 {[%emt 0:00:22]} bxc6 {[%emt 0:00:54]} 17. Bb4 {[%emt 0:00:04]} Kd7 {[%emt 0:01:36]} 18. Bxf8 {[%emt 0:00:07]} Qxf8 {[%emt 0:01:47]} 19. Qxf8 {[%emt 0:00:06]} Rxf8 {[%emt 0:00:25]} 20. c4 {[%emt 0:00:01] Pin} Ke6 {[%emt 0:02:05]} 21. Rhe1+ {[%emt 0:00:23]} Kd6 {[%emt 0:00:37]} 22. Re5 {[%emt 0:01:13] Pin} f6 {[%emt 0:03:13]} 23. Rh5 {[%emt 0:00:00] Pin} ({Less strong is} 23. cxd5 fxe5 24. fxe5+ Kxe5 $16) 23... Rg8 {[%emt 0:01:51]} 24. g3 {[%emt 0:00:00]} Ke6 {[%emt 0:04:16]} 25. cxd5+ {[%emt 0:00:04]} cxd5 {[%emt 0:01:08]} 26. Rhxd5 {[%emt 0:00:02]} Re8 {[%emt 0:02:06]} 27. f5+ {[%emt 0:00:45]} Kf7 {[%emt 0:00:49]} 28. Rd7+ {[%emt 0:00:02]} Kg8 {[%emt 0:00:00]} 29. Rxc7 {[%emt 0:00:05]} a5 {[%emt 0:02:58]} 30. Rdd7 {[%emt 0:00:54]} h5 {[%emt 0:03:06]} 31. Rg7+ {[%emt 0:00:30]} Kh8 {[%emt 0:00:16]} 32. Rh7+ {[%emt 0:00:06]} Kg8 {[%emt 0:00:15]} 33. Rxh5 {[%emt 0:00:14]} Rd8 {[%emt 0:02:07]} 34. g4 {[%emt 0:00:51]} Re8 {[%emt 0:05:31]} 35. g5 {[%emt 0:00:00]} fxg5 {[%emt 0:01:12]} 36. f6 {[%emt 0:00:00]} Rf8 {[%emt 0:03:09]} 37. Rg7# {[%emt 0:00:32]} 1-0

[Event "White Rook U14 Final 2019"]
[Site "Sochi"]
[Date "2019.06.06"]
[Round "5.21"]
[White "Kolev, Georgi"]
[Black "Sargsyan, Gor K."]
[Result "0-1"]
[ECO "A47"]
[WhiteElo "1736"]
[BlackElo "1641"]
[Annotator "NA RC"]
[PlyCount "146"]
[EventDate "2019.06.02"]
[EventCountry "RUS"]
[SourceTitle "playchess.com"]
[Source "ChessBase"]
[SourceQuality "1"]
[TimeControl "5400+30"]

1. d4 {[%emt 0:00:00]} Nf6 {[%emt 0:00:00]} 2. Nf3 {[%emt 0:00:00]} b6 {[%emt 0:00:18]} 3. Bf4 {[%emt 0:00:08]} Bb7 {[%emt 0:00:06]} 4. e3 {[%emt 0:00:00]} e6 {[%emt 0:00:35]} 5. Bd3 {[%emt 0:01:19]} Be7 {[%emt 0:00:00]} 6. O-O {[%emt 0:00:00]} d5 {[%emt 0:00:20]} 7. Nbd2 {[%emt 0:00:31]} Nbd7 {[%emt 0:00:15]} 8. Ne5 {[%emt 0:01:06]} Nxe5 {[%emt 0:19:18]} 9. Bxe5 {[%emt 0:02:42]} Bd6 {[%emt 0:00:52]} 10. Nf3 {[%emt 0:00:11]} c5 {[%emt 0:01:15]} 11. Bb5+ {[%emt 0:00:40]} Ke7 {[%emt 0:00:14]} 12. c3 {[%emt 0:01:17]} a6 {[%emt 0:01:21]} 13. Bd3 {[%emt 0:01:45]} Ne8 {[%emt 0:02:20]} 14. Re1 {[%emt 0:02:54]} f6 {[%emt 0:07:18]} 15. Bxd6+ {[%emt 0:01:45]} Nxd6 {[%emt 0:00:00]} 16. Nd2 {[%emt 0:05:27]} Kf7 {[%emt 0:07:02]} 17. e4 {[%emt 0:01:22]} cxd4 {[%emt 0:00:40]} 18. cxd4 {[%emt 0:02:15]} dxe4 {[%emt 0:00:06]} 19. Nxe4 {[%emt 0:00:12]} Nf5 {[%emt 0:00:10]} 20. Bc4 {[%emt 0:11:14]} Bd5 {[%emt 0:03:24]} 21. Rc1 {[%emt 0:26:49]} Bxc4 {[%emt 0:16:13]} 22. Rxc4 {[%emt 0:00:52]} b5 {[%emt 0:00:04]} 23. Rb4 {[%emt 0:01:48]} Qa5 {[%emt 0:00:19]} 24. a3 {[%emt 0:00:44]} Rhd8 {[%emt 0:00:04]} 25. Re2 {[%emt 0:04:43]} Qb6 {[%emt 0:00:41]} 26. Rd2 {[%emt 0:10:36]} a5 {[%emt 0:00:36]} 27. Rb3 {[%emt 0:00:45]} Nxd4 {[%emt 0:01:20]} 28. Qh5+ {[%emt 0:00:31]} Kg8 {[%emt 0:00:34]} 29. Rh3 {[%emt 0:00:36]} Qc7 {[%emt 0:11:29]} 30. Qxh7+ {[%emt 0:00:53]} Kf7 {[%emt 0:00:00]} 31. Qh5+ {[%emt 0:00:39]} Ke7 {[%emt 0:00:00]} 32. Rc3 {[%emt 0:00:53]} Qd7 {[%emt 0:10:19]} 33. Qg6 {[%emt 0:01:51]} Kf8 {[%emt 0:00:35]} 34. Rh3 {[%emt 0:00:45]} Qf7 {[%emt 0:00:56]} 35. Qg4 {[%emt 0:04:41]} Rac8 {[%emt 0:01:41]} 36. Rd1 {[%emt 0:04:07]} Ke7 {[%emt 0:05:51]} 37. Rh7 {[%emt 0:03:08]} Nf5 {[%emt 0:00:09]} 38. Ng3 {[%emt 0:02:04]} Rc4 {[%emt 0:06:12]} 39. Nxf5+ {[%emt 0:02:07]} exf5 {[%emt 0:00:08]} 40. Qf3 {[%emt 0:01:33]} Rxd1+ {[%emt 0:00:15]} 41. Qxd1 {[%emt 0:00:00]} Qd5 {[%emt 0:00:29]} 42. Qe1+ {[%emt 0:05:12]} Re4 {[%emt 0:00:36]} 43. Qc1 {[%emt 0:00:15]} Qc6 {[%emt 0:01:55]} 44. Rxg7+ {[%emt 0:00:12]} Kf8 {[%emt 0:00:11]} 45. Rc7 {[%emt 0:01:05]} Qxc7 {[%emt 0:00:34]} 46. Qh6+ {[%emt 0:00:00]} Ke8 {[%emt 0:00:32]} 47. Qh5+ {[%emt 0:00:00]} Qf7 {[%emt 0:00:00]} 48. Qh8+ {[%emt 0:00:50]} Ke7 {[%emt 0:00:34]} 49. h4 {[%emt 0:00:00]} Rg4 {[%emt 0:00:09]} 50. h5 {[%emt 0:00:28]} Qg7 {[%emt 0:00:05]} 51. Qa8 {[%emt 0:00:07]} Kf7 {[%emt 0:00:31]} 52. Qb7+ {[%emt 0:00:26]} Kg8 {[%emt 0:00:36]} 53. Qc8+ {[%emt 0:00:14]} Kh7 {[%emt 0:00:22]} 54. Qxf5+ {[%emt 0:00:00]} Kh6 {[%emt 0:00:39]} 55. g3 {[%emt 0:00:10]} Qg5 {[%emt 0:00:00]} 56. Qc8 {[%emt 0:01:24]} Qg7 {[%emt 0:00:59]} 57. Qf5 {[%emt 0:00:27]} Rg5 {[%emt 0:00:00]} 58. Qf4 {[%emt 0:00:43]} Kxh5 {[%emt 0:00:27]} 59. Kf1 {[%emt 0:00:51]} Kg6 {[%emt 0:00:24]} 60. Qe4+ {[%emt 0:00:12]} f5 {[%emt 0:00:04]} 61. Qe6+ {[%emt 0:00:09]} Kh7 {[%emt 0:00:20]} 62. Qc6 {[%emt 0:00:31]} Qxb2 {[%emt 0:00:18]} 63. Qh1+ {[%emt 0:00:21]} Kg7 {[%emt 0:00:44]} 64. Qb7+ {[%emt 0:00:08]} Kh6 {[%emt 0:00:10]} 65. Qh1+ {[%emt 0:00:34]} Rh5 {[%emt 0:01:02]} 66. Qc6+ {[%emt 0:00:08]} Kh7 {[%emt 0:00:15]} 67. Qd7+ {[%emt 0:00:18]} Qg7 {[%emt 0:01:32]} 68. Qxb5 {[%emt 0:00:11]} Rg5 {[%emt 0:00:10]} 69. Qc6 {[%emt 0:00:13]} Rg6 {[%emt 0:01:04]} 70. Qh1+ {[%emt 0:00:09]} Rh6 {[%emt 0:00:05]} 71. Qd5 {[%emt 0:00:12]} Qa1+ {[%emt 0:01:18]} 72. Ke2 {[%emt 0:00:12]} Qb2+ {[%emt 0:00:04]} 73. Kf1 {[%emt 0:00:07]} Qb1+ {[%emt 0:00:05]} 0-1

[Event "White Rook U14 Final 2019"]
[Site "Sochi"]
[Date "2019.06.06"]
[Round "5.22"]
[White "Grigoryan, Hayk V."]
[Black "Demirov, Todor"]
[Result "1-0"]
[ECO "B15"]
[WhiteElo "1423"]
[BlackElo "1586"]
[Annotator "NA RC"]
[PlyCount "53"]
[EventDate "2019.06.02"]
[EventCountry "RUS"]
[SourceTitle "playchess.com"]
[Source "ChessBase"]
[SourceQuality "1"]
[TimeControl "5400+30"]

1. e4 {[%emt 0:00:00]} c6 {[%emt 0:00:08]} 2. Nc3 {[%emt 0:00:07]} d5 {[%emt 0:00:08]} 3. Nf3 {[%emt 0:00:00]} dxe4 {[%emt 0:00:08]} 4. Nxe4 {[%emt 0:00:08]} Nf6 {[%emt 0:00:09]} 5. Nxf6+ {[%emt 0:00:00]} exf6 {[%emt 0:00:08]} 6. d4 {[%emt 0:00:08]} Bd6 {[%emt 0:00:24]} 7. h3 {[%emt 0:01:38]} O-O {[%emt 0:00:08]} 8. Bd3 {[%emt 0:00:16]} Re8+ {[%emt 0:00:40]} 9. Be3 {[%emt 0:05:43]} Bf4 {[%emt 0:28:27]} 10. Qe2 {[%emt 0:00:24]} Qe7 {[%emt 0:09:46]} 11. Kd2 {[%emt 0:00:32]} Qb4+ {[%emt 0:01:53]} 12. Kc1 {[%emt 0:02:16]} c5 {[%emt 0:00:48]} 13. c3 {[%emt 0:01:21]} Qb6 {[%emt 0:00:40]} 14. Bxh7+ {[%emt 0:00:24]} Kh8 {[%emt 0:15:18]} 15. Bc2 {[%emt 0:00:00]} cxd4 {[%emt 0:00:25]} 16. Nxd4 {[%emt 0:00:32]} g6 {[%emt 0:00:48]} 17. Qf3 {[%emt 0:06:13]} Bxe3+ {[%emt 0:00:41]} 18. fxe3 {[%emt 0:00:08]} Nc6 {[%emt 0:00:08]} 19. Qxf6+ {[%emt 0:00:09]} Kg8 {[%emt 0:00:32]} 20. Bxg6 {[%emt 0:00:16]} fxg6 {[%emt 0:00:00]} 21. Qxg6+ {[%emt 0:00:03]} Kh8 {[%emt 0:00:00]} 22. Qxe8+ {[%emt 0:00:07]} Kg7 {[%emt 0:00:00]} 23. Rf1 {[%emt 0:01:15]} Nxd4 {[%emt 0:00:07]} 24. Qf8+ {[%emt 0:01:38]} Kg6 {[%emt 0:01:45]} 25. Qf7+ {[%emt 0:00:16]} Kg5 {[%emt 0:00:24]} 26. h4+ {[%emt 0:00:08]} Kh6 {[%emt 0:00:16]} 27. Rf6+ {[%emt 0:00:08]} 1-0

[Event "White Rook U14 Final 2019"]
[Site "Sochi"]
[Date "2019.06.06"]
[Round "5.23"]
[White "Ardenski, Dimitar"]
[Black "Hovhannisyan, Artyom"]
[Result "1-0"]
[ECO "C33"]
[WhiteElo "1280"]
[BlackElo "1458"]
[Annotator "NA RC"]
[PlyCount "99"]
[EventDate "2019.06.02"]
[EventCountry "RUS"]
[SourceTitle "playchess.com"]
[Source "ChessBase"]
[SourceQuality "1"]
[TimeControl "5400+30"]

1. e4 {[%emt 0:00:00]} e5 {[%emt 0:00:00]} 2. f4 {[%emt 0:00:00]} exf4 {[%emt 0:00:00]} 3. Nf3 {[%emt 0:00:00]} d6 {[%emt 0:00:52]} 4. Bc4 {[%emt 0:00:14]} Nc6 {[%emt 0:00:34]} 5. d4 {[%emt 0:01:21]} Be7 {[%emt 0:01:11]} 6. O-O {[%emt 0:00:00]} Nf6 {[%emt 0:00:49]} 7. Nc3 {[%emt 0:05:28]} O-O {[%emt 0:00:00]} 8. Bxf4 {[%emt 0:00:17]} Bg4 {[%emt 0:01:12]} 9. Qd2 {[%emt 0:02:08]} Nd7 {[%emt 0:09:30]} 10. Rae1 {[%emt 0:06:55]} Bxf3 {[%emt 0:04:46]} 11. Rxf3 {[%emt 0:01:23]} Bf6 {[%emt 0:00:04]} 12. Ne2 {[%emt 0:06:23]} Re8 {[%emt 0:00:44]} 13. Bd5 {[%emt 0:01:21]} Nb6 {[%emt 0:01:47]} 14. Bxc6 {[%emt 0:07:46]} bxc6 {[%emt 0:00:08]} 15. Ng3 {[%emt 0:06:07]} Rb8 {[%emt 0:05:51]} 16. b3 {[%emt 0:01:13]} Nd7 {[%emt 0:00:45]} 17. Nh5 {[%emt 0:10:03]} c5 {[%emt 0:00:42]} 18. c3 {[%emt 0:07:57]} cxd4 {[%emt 0:00:15]} 19. cxd4 {[%emt 0:00:18]} Nf8 {[%emt 0:06:02]} 20. Bh6 {[%emt 0:10:55]} Bh4 {[%emt 0:05:52]} 21. Bxg7 {[%emt 0:06:41]} Re6 {[%emt 0:08:00]} 22. Ref1 {[%emt 0:06:06]} Rg6 {[%emt 0:07:09]} 23. Rxf7 {[%emt 0:01:19]} Ne6 {[%emt 0:00:14]} 24. Bf6 {[%emt 0:01:44]} Bxf6 {[%emt 0:00:11]} 25. R7xf6 {[%emt 0:01:40]} Qe8 {[%emt 0:02:31]} 26. R1f3 {[%emt 0:00:59]} Qe7 {[%emt 0:02:12]} 27. Rxg6+ {[%emt 0:01:47]} hxg6 {[%emt 0:00:08]} 28. Nf6+ {[%emt 0:01:42]} Kg7 {[%emt 0:00:10]} 29. d5 {[%emt 0:00:32]} Rf8 {[%emt 0:03:21]} 30. dxe6 {[%emt 0:00:56]} Rxf6 {[%emt 0:00:06]} 31. Qc3 {[%emt 0:00:22]} c5 {[%emt 0:00:50]} 32. e5 {[%emt 0:03:06]} dxe5 {[%emt 0:02:03]} 33. Qxe5 {[%emt 0:00:00]} Qxe6 {[%emt 0:00:11]} 34. Qxf6+ {[%emt 0:00:11]} Qxf6 {[%emt 0:00:35]} 35. Rxf6 {[%emt 0:00:09]} Kxf6 {[%emt 0:00:01]} 36. Kf2 {[%emt 0:00:08]} Kf5 {[%emt 0:00:00]} 37. Kf3 {[%emt 0:00:09]} g5 {[%emt 0:00:37]} 38. h3 {[%emt 0:00:57]} a6 {[%emt 0:00:00]} 39. g3 {[%emt 0:00:00]} a5 {[%emt 0:00:00]} 40. h4 {[%emt 0:00:03]} a4 {[%emt 0:00:00]} 41. Ke3 {[%emt 0:01:08]} axb3 {[%emt 0:00:07]} 42. axb3 {[%emt 0:00:00]} gxh4 {[%emt 0:00:04]} 43. gxh4 {[%emt 0:00:16]} Kg4 {[%emt 0:00:05]} 44. Kd3 {[%emt 0:00:07]} Kxh4 {[%emt 0:00:06]} 45. Kc4 {[%emt 0:00:00]} Kg5 {[%emt 0:00:04]} 46. Kxc5 {[%emt 0:00:00]} Kf6 {[%emt 0:00:03]} 47. Kc6 {[%emt 0:00:03]} Ke7 {[%emt 0:00:04]} 48. b4 {[%emt 0:00:08]} Kd8 {[%emt 0:00:04]} 49. b5 {[%emt 0:00:54]} Kc8 {[%emt 0:00:05]} 50. b6 {[%emt 0:00:00]} 1-0

[Event "White Rook U14 Final 2019"]
[Site "Sochi"]
[Date "2019.06.06"]
[Round "5.24"]
[White "Hakobyan, Astghik"]
[Black "Petkova, Irina"]
[Result "1-0"]
[ECO "C45"]
[WhiteElo "1791"]
[BlackElo "1207"]
[Annotator "NA RC"]
[PlyCount "53"]
[EventDate "2019.06.02"]
[EventCountry "RUS"]
[SourceTitle "playchess.com"]
[Source "ChessBase"]
[SourceQuality "1"]
[TimeControl "5400+30"]

1. e4 {[%emt 0:00:00]} e5 {[%emt 0:00:00]} 2. Nf3 {[%emt 0:00:00]} Nc6 {[%emt 0:00:00]} 3. d4 {[%emt 0:00:00]} exd4 {[%emt 0:00:00]} 4. Nxd4 {[%emt 0:00:00]} Bc5 {[%emt 0:00:00]} 5. Be3 {[%emt 0:00:00]} Qf6 {[%emt 0:00:00]} 6. c3 {[%emt 0:00:00]} Qg6 {[%emt 0:00:00]} 7. Nd2 {[%emt 0:02:02]} Nf6 {[%emt 0:00:23]} 8. Qc2 {[%emt 0:02:15]} Nxd4 {[%emt 0:08:00]} 9. cxd4 {[%emt 0:00:12]} Bb4 {[%emt 0:00:24]} 10. f3 {[%emt 0:01:31]} d5 {[%emt 0:00:49]} 11. Qa4+ {[%emt 0:00:05]} Bd7 {[%emt 0:04:41]} 12. Qxb4 {[%emt 0:00:16]} b6 {[%emt 0:01:25]} 13. e5 {[%emt 0:00:22]} Ng8 {[%emt 0:02:02]} 14. Rc1 {[%emt 0:00:37]} a5 {[%emt 0:30:47]} 15. Qb3 {[%emt 0:01:36]} Ne7 {[%emt 0:00:58]} 16. Rxc7 {[%emt 0:04:30]} Nf5 {[%emt 0:16:14]} 17. Qxd5 {[%emt 0:01:18]} O-O {[%emt 0:02:50]} 18. Qxd7 {[%emt 0:01:46]} Nxe3 {[%emt 0:01:31]} 19. Qc6 {[%emt 0:00:34]} Qg5 {[%emt 0:10:26]} 20. Ne4 {[%emt 0:02:21]} Qf5 {[%emt 0:13:09]} 21. Bd3 {[%emt 0:01:19]} Nxg2+ {[%emt 0:01:10]} 22. Kf2 {[%emt 0:00:07]} Qh3 {[%emt 0:02:13]} 23. Bf1 {[%emt 0:00:27]} Qh4+ {[%emt 0:02:31]} 24. Kxg2 {[%emt 0:00:05]} Rfd8 {[%emt 0:00:51]} 25. Bc4 {[%emt 0:00:38]} Rxd4 {[%emt 0:00:57]} 26. Qxa8+ {[%emt 0:00:40]} Rd8 {[%emt 0:00:12]} 27. Rxf7 {[%emt 0:00:16]} 1-0

[Event "White Rook U14 Final 2019"]
[Site "Sochi"]
[Date "2019.06.06"]
[Round "5.25"]
[White "Magomedov, Adam"]
[Black "Voloshkin, Daniil"]
[Result "1/2-1/2"]
[ECO "B20"]
[WhiteElo "1773"]
[BlackElo "1557"]
[Annotator "NA RC"]
[PlyCount "62"]
[EventDate "2019.06.02"]
[EventCountry "RUS"]
[SourceTitle "playchess.com"]
[Source "ChessBase"]
[SourceQuality "1"]
[TimeControl "5400+30"]

1. e4 {[%emt 0:00:00]} c5 {[%emt 0:00:00]} 2. Ne2 {[%emt 0:00:00]} d6 {[%emt 0:00:25]} 3. c4 {[%emt 0:00:00]} Nc6 {[%emt 0:00:22]} 4. Nbc3 {[%emt 0:00:00]} g6 {[%emt 0:00:06]} 5. g3 {[%emt 0:00:00]} Bg4 {[%emt 0:00:40]} 6. Bg2 {[%emt 0:08:34]} Ne5 {[%emt 0:02:00]} 7. O-O {[%emt 0:00:16]} Nf3+ {[%emt 0:27:32]} 8. Kh1 {[%emt 0:00:23]} Qd7 {[%emt 0:00:27]} 9. d3 {[%emt 0:14:57]} h5 {[%emt 0:15:27]} 10. h4 {[%emt 0:07:01]} Bg7 {[%emt 0:12:09]} 11. Qa4 {[%emt 0:11:26]} Qxa4 {[%emt 0:04:27]} 12. Nxa4 {[%emt 0:00:03]} g5 {[%emt 0:03:20]} 13. Ng1 {[%emt 0:08:26]} Nxg1 {[%emt 0:01:31]} 14. Rxg1 {[%emt 0:00:47]} gxh4 {[%emt 0:00:00]} 15. gxh4 {[%emt 0:00:02]} Bd4 {[%emt 0:01:47]} 16. Be3 {[%emt 0:00:32]} Bxe3 {[%emt 0:05:50]} 17. fxe3 {[%emt 0:00:02]} Nf6 {[%emt 0:00:12]} 18. Nc3 {[%emt 0:00:51]} Be6 {[%emt 0:04:43]} 19. Bf3 {[%emt 0:16:21]} Ng4 {[%emt 0:01:18]} 20. Nd5 {[%emt 0:02:37]} Bxd5 {[%emt 0:01:37]} 21. cxd5 {[%emt 0:01:19]} Nf2+ {[%emt 0:04:12]} 22. Kh2 {[%emt 0:00:07]} Nxd3 {[%emt 0:00:00]} 23. Bxh5 {[%emt 0:04:18]} O-O-O {[%emt 0:04:54]} 24. Bg4+ {[%emt 0:00:34]} Kc7 {[%emt 0:00:17]} 25. h5 {[%emt 0:00:53]} Nxb2 {[%emt 0:02:02]} 26. Be2 {[%emt 0:00:16]} Na4 {[%emt 0:00:23]} 27. Rg7 {[%emt 0:00:28]} Nc3 {[%emt 0:00:55]} 28. Bf3 {[%emt 0:01:20]} Rdf8 {[%emt 0:00:57]} 29. a4 {[%emt 0:01:04]} b5 {[%emt 0:01:58]} 30. axb5 {[%emt 0:01:05]} Nxb5 {[%emt 0:00:30]} 31. Be2 {[%emt 0:00:30]} Kb6 {[%emt 0:00:00]} 1/2-1/2

[Event "White Rook U14 Final 2019"]
[Site "Sochi"]
[Date "2019.06.06"]
[Round "5.26"]
[White "Vorzhevitin, Dmitriy"]
[Black "Seregin, Ignat"]
[Result "1/2-1/2"]
[ECO "E10"]
[WhiteElo "1346"]
[BlackElo "1687"]
[Annotator "NA RC"]
[PlyCount "58"]
[EventDate "2019.06.02"]
[EventCountry "RUS"]
[SourceTitle "playchess.com"]
[Source "ChessBase"]
[SourceQuality "1"]
[TimeControl "5400+30"]

1. d4 {[%emt 0:00:00]} Nf6 {[%emt 0:00:00]} 2. c4 {[%emt 0:00:00]} e6 {[%emt 0:00:00]} 3. Bg5 {[%emt 0:03:54]} c5 {[%emt 0:09:50]} 4. Nf3 {[%emt 0:14:04]} cxd4 {[%emt 0:02:02]} 5. Bxf6 {[%emt 0:04:02]} Bb4+ {[%emt 0:02:33]} 6. Nbd2 {[%emt 0:03:15]} Qxf6 {[%emt 0:02:02]} 7. a3 {[%emt 0:02:09]} Bxd2+ {[%emt 0:13:14]} 8. Qxd2 {[%emt 0:06:21]} b6 {[%emt 0:20:34]} 9. Qxd4 {[%emt 0:03:28]} Nc6 {[%emt 0:06:26]} 10. Qxf6 {[%emt 0:01:45]} gxf6 {[%emt 0:00:05]} 11. g3 {[%emt 0:01:32]} Na5 {[%emt 0:00:00]} 12. Rc1 {[%emt 0:06:42]} Ba6 {[%emt 0:00:19]} 13. e3 {[%emt 0:01:24]} Bb7 {[%emt 0:08:30]} 14. Be2 {[%emt 0:03:41]} Rc8 {[%emt 0:00:00]} 15. O-O {[%emt 0:00:39]} Bxf3 {[%emt 0:04:27]} 16. Bxf3 {[%emt 0:00:18]} Rxc4 {[%emt 0:06:58]} 17. b4 {[%emt 0:02:14]} Rxc1 {[%emt 0:03:14]} 18. Rxc1 {[%emt 0:00:01]} Nc6 {[%emt 0:00:13]} 19. Bxc6 {[%emt 0:00:01]} dxc6 {[%emt 0:00:34]} 20. Rxc6 {[%emt 0:00:05]} Kd7 {[%emt 0:00:00]} 21. Rc4 {[%emt 0:01:25]} f5 {[%emt 0:02:37]} 22. Kg2 {[%emt 0:01:38]} e5 {[%emt 0:03:38]} 23. b5 {[%emt 0:05:35]} h5 {[%emt 0:05:55]} 24. Ra4 {[%emt 0:00:48]} Ra8 {[%emt 0:00:25]} 25. Rh4 {[%emt 0:00:10]} Rh8 {[%emt 0:00:00]} 26. Ra4 {[%emt 0:00:31]} Ra8 {[%emt 0:00:11]} 27. Rh4 {[%emt 0:01:03]} Rh8 {[%emt 0:00:00]} 28. Ra4 {[%emt 0:00:17]} Ra8 {[%emt 0:00:09]} 29. Rh4 {[%emt 0:00:15]} Rh8 {[%emt 0:00:00]} 1/2-1/2

[Event "White Rook U14 Final 2019"]
[Site "Sochi"]
[Date "2019.06.06"]
[Round "5.27"]
[White "Mugenov, Vadim"]
[Black "Zenkov, Maksim"]
[Result "1-0"]
[ECO "A30"]
[WhiteElo "1329"]
[BlackElo "1394"]
[Annotator "NA RC"]
[PlyCount "89"]
[EventDate "2019.06.02"]
[EventCountry "RUS"]
[SourceTitle "playchess.com"]
[Source "ChessBase"]
[SourceQuality "1"]
[TimeControl "5400+30"]

1. Nf3 {[%emt 0:00:00]} c5 {[%emt 0:00:24]} 2. c4 {[%emt 0:00:32]} Nc6 {[%emt 0:00:57]} 3. Nc3 {[%emt 0:00:24]} Nf6 {[%emt 0:02:17]} 4. g3 {[%emt 0:02:40]} d5 {[%emt 0:00:39]} 5. cxd5 {[%emt 0:00:17]} Nxd5 {[%emt 0:00:00]} 6. Bg2 {[%emt 0:00:15]} e5 {[%emt 0:02:48]} 7. O-O {[%emt 0:03:04]} Be7 {[%emt 0:00:48]} 8. Nxe5 {[%emt 0:22:36]} Nxc3 {[%emt 0:07:27]} 9. Nxc6 {[%emt 0:00:16]} Nxd1 {[%emt 0:00:40]} 10. Nxd8 {[%emt 0:00:08]} Nxf2 {[%emt 0:00:17]} 11. Nxf7 {[%emt 0:00:32]} Ng4 {[%emt 0:13:34]} 12. Nxh8 {[%emt 0:00:24]} Nf6 {[%emt 0:01:36]} 13. b3 {[%emt 0:00:57]} Rb8 {[%emt 0:08:27]} 14. Bb2 {[%emt 0:00:16]} Be6 {[%emt 0:02:33]} 15. Be5 {[%emt 0:02:17]} Rd8 {[%emt 0:03:40]} 16. d3 {[%emt 0:02:27]} b6 {[%emt 0:01:21]} 17. h3 {[%emt 0:11:18]} Kf8 {[%emt 0:01:26]} 18. Rad1 {[%emt 0:01:42]} Kg8 {[%emt 0:01:42]} 19. d4 {[%emt 0:03:17]} cxd4 {[%emt 0:03:54]} 20. Bxd4 {[%emt 0:00:15]} Kxh8 {[%emt 0:00:16]} 21. Bxf6 {[%emt 0:00:16]} gxf6 {[%emt 0:00:40]} 22. Rxd8+ {[%emt 0:00:07]} Bxd8 {[%emt 0:00:00]} 23. Rd1 {[%emt 0:00:31]} Be7 {[%emt 0:02:18]} 24. g4 {[%emt 0:00:45]} Kg7 {[%emt 0:02:05]} 25. Bd5 {[%emt 0:00:15]} Bd7 {[%emt 0:05:35]} 26. Be4 {[%emt 0:00:22]} Be8 {[%emt 0:01:46]} 27. Kg2 {[%emt 0:00:34]} b5 {[%emt 0:07:45]} 28. Rc1 {[%emt 0:01:51]} Bd6 {[%emt 0:03:42]} 29. Bc6 {[%emt 0:00:19]} Bxc6+ {[%emt 0:06:36]} 30. Rxc6 {[%emt 0:00:06]} Be5 {[%emt 0:01:54]} 31. Kf3 {[%emt 0:02:03]} Kg6 {[%emt 0:03:02]} 32. h4 {[%emt 0:00:18]} a5 {[%emt 0:01:16]} 33. g5 {[%emt 0:00:11]} a4 {[%emt 0:00:58]} 34. gxf6 {[%emt 0:00:24]} axb3 {[%emt 0:01:07]} 35. axb3 {[%emt 0:00:06]} b4 {[%emt 0:00:22]} 36. Rb6 {[%emt 0:01:02]} Bc3 {[%emt 0:00:28]} 37. f7+ {[%emt 0:00:50]} Kxf7 {[%emt 0:00:06]} 38. Kg4 {[%emt 0:00:11]} Kg7 {[%emt 0:01:24]} 39. Kf5 {[%emt 0:00:46]} Bd2 {[%emt 0:02:09]} 40. e4 {[%emt 0:00:27]} Bc3 {[%emt 0:00:06]} 41. e5 {[%emt 0:00:33]} Bd4 {[%emt 0:00:15]} 42. Rxb4 {[%emt 0:00:15]} Kh6 {[%emt 0:00:51]} 43. e6 {[%emt 0:00:10]} Bc5 {[%emt 0:01:21]} 44. Rb7 {[%emt 0:00:29]} Bf8 {[%emt 0:01:41]} 45. e7 {[%emt 0:00:38]} 1-0